bitfinex-derivatives/quotes_BTCF0:USTF0_20250411
["timestamp","ask_amount","ask_price","bid_price","bid_amount"]
[1744394780581,0.3200522,84136.0,84135.0,0.1189136]
[1744394780784,0.1189178,84132.0,84131.0,0.1783777]
[1744394780985,0.0594575,84134.0,84125.0,0.0594636]
[1744394781288,0.1189362,84121.0,84120.0,0.1783963]
[1744394781679,0.1189376,84118.0,84115.0,0.0594706]
[1744394782080,0.1189376,84118.0,84114.0,0.0594715]
[1744394782584,0.1189376,84118.0,84117.0,0.46250177]
[1744394782986,0.1189376,84118.0,84117.0,0.34356277]
[1744394783791,0.1189776,84118.0,84117.0,0.46250177]
[1744394783983,0.1189776,84118.0,84117.0,0.118939]
[1744394784177,4e-05,84118.0,84117.0,0.118939]
[1744394784479,0.3608,84119.0,84118.0,0.1189376]
[1744394784681,0.00023233,84126.0,84125.0,0.1189277]
[1744394785390,0.00017832,84126.0,84125.0,0.1189277]
[1744394785686,0.00021832,84126.0,84125.0,0.1189277]
[1744394785985,0.00017832,84126.0,84125.0,0.1189277]
[1744394786188,0.00021832,84126.0,84125.0,0.1189277]
[1744394786391,0.1189277,84125.0,84124.0,0.1036]
[1744394786687,0.1189362,84119.0,84118.0,0.3414709]
[1744394786888,0.1189362,84119.0,84111.0,0.0986]
[1744394786889,0.118939,84117.0,84116.0,0.1189401]
[1744394787077,0.0594725,84113.0,84103.0,0.099]
[1744394787278,0.1189489,84110.0,84109.0,0.17853954]
[1744394787478,0.1189489,84110.0,84109.0,0.11906724]
[1744394787688,0.1189489,84110.0,84109.0,0.05959344]
[1744394788595,0.1784034,84125.0,84124.0,0.1189277]
[1744394788888,0.36097832,84126.0,84115.0,0.0594686]
[1744394789092,0.1189419,84116.0,84115.0,0.1189393]
[1744394789688,0.1189419,84116.0,84115.0,0.2162393]
[1744394789991,0.1189419,84116.0,84115.0,0.3128393]
[1744394790291,4e-05,84125.0,84115.0,0.3128393]
[1744394790292,4e-05,84125.0,84124.0,0.1189292]
[1744394790588,0.00017832,84126.0,84125.0,0.1189277]
[1744394790796,0.11910462,84126.0,84125.0,0.1189277]
[1744394791380,0.00021832,84126.0,84125.0,0.1189277]
[1744394791987,0.11914462,84126.0,84125.0,0.1189277]
[1744394792383,0.11910462,84126.0,84125.0,0.1189277]
[1744394792692,0.00021832,84126.0,84125.0,0.1189277]
[1744394792897,0.00017832,84126.0,84125.0,0.1189277]
[1744394793188,0.11914462,84126.0,84125.0,0.1189277]
[1744394793379,0.11914462,84126.0,84123.0,0.0973]
[1744394793380,0.1189292,84124.0,84123.0,0.0973]
[1744394793990,0.1189362,84120.0,84119.0,0.1189356]
[1744394794191,0.1189362,84120.0,84119.0,0.2175356]
[1744394794391,0.1189362,84120.0,84119.0,0.0986]
[1744394794688,0.1189489,84110.0,84108.0,0.1002]
[1744394794890,0.4797489,84110.0,84107.0,0.00475582]
[1744394795086,0.4797489,84110.0,84109.0,0.11907004]
[1744394795286,0.4797489,84110.0,84109.0,0.00011964]
[1744394795490,0.4797489,84110.0,84109.0,0.11907004]
[1744394796088,0.1189489,84110.0,84109.0,0.11907004]
[1744394796294,0.0594695,84117.0,84109.0,0.00011964]
[1744394796484,0.0594737,84112.0,84111.0,0.1784166]
[1744394796690,0.0594737,84112.0,84111.0,0.3789166]
[1744394796887,0.2378963,84112.0,84111.0,0.1022]
[1744394797189,0.1189489,84110.0,84109.0,0.00011964]
[1744394797781,0.3169489,84110.0,84109.0,0.00011964]
[1744394799002,0.1189617,84101.0,84089.0,0.00178376]
[1744394799188,0.1189772,84090.0,84089.0,0.00178376]
[1744394799393,0.1189886,84083.0,84082.0,0.2379703]
[1744394799783,0.1189886,84083.0,84082.0,0.118987]
[1744394799993,0.1189886,84082.0,84081.0,0.12374729]
[1744394800291,0.1189886,84082.0,84081.0,0.00475729]
[1744394800694,0.1189999,84074.0,84073.0,0.1784977]
[1744394801189,0.1190027,84072.0,84071.0,0.0947]
[1744394801588,0.1190055,84070.0,84069.0,0.059503]
[1744394802290,0.1190455,84070.0,84069.0,0.059503]
[1744394802491,0.119007,84069.0,84068.0,0.0947]
[1744394802694,0.1190169,84062.0,84061.0,0.0938]
[1744394803491,0.1190241,84058.0,84055.0,0.00475876]
[1744394803682,0.0595057,84066.0,84055.0,0.12378436]
[1744394803884,0.1190254,84056.0,84055.0,0.12378436]
[1744394804098,0.1190254,84056.0,84055.0,0.10275876]
[1744394804497,0.1190243,84057.0,84055.0,0.22178486]
[1744394804698,0.1190243,84057.0,84056.0,0.0973]
[1744394805089,0.1190243,84057.0,84056.0,0.3143254]
[1744394805601,0.1190103,84068.0,84067.0,0.1190084]
[1744394805799,0.1190103,84068.0,84067.0,0.3143084]
[1744394805999,0.00017842,84070.0,84069.0,0.119007]
[1744394806400,0.1190084,84068.0,84067.0,0.1953]
[1744394806600,0.1190084,84068.0,84067.0,0.3143098]
[1744394807096,0.00021842,84070.0,84069.0,0.119007]
[1744394807295,0.11922392,84070.0,84069.0,0.119007]
[1744394807495,0.11918392,84070.0,84069.0,0.119007]
[1744394807701,0.11922392,84070.0,84069.0,0.119007]
[1744394807896,0.11918392,84070.0,84069.0,0.119007]
[1744394808098,0.00021842,84070.0,84069.0,0.119007]
[1744394808602,0.11922392,84070.0,84069.0,0.119007]
[1744394813104,0.1190084,84068.0,84067.0,0.19551]
[1744394813301,0.4798084,84068.0,84067.0,0.19551]
[1744394813499,0.4798084,84068.0,84067.0,0.2170098]
[1744394813800,0.5602,84068.0,84050.0,0.00875356]
[1744394813997,0.1190254,84057.0,84056.0,0.0941]
[1744394814193,0.1190254,84057.0,84056.0,0.2131254]
[1744394814396,0.3184254,84057.0,84056.0,0.1923]
[1744394814706,0.1190254,84056.0,84055.0,0.00475876]
[1744394815303,0.3184254,84056.0,84055.0,0.00475876]
[1744394815691,0.4174654,84056.0,84055.0,0.00475876]
[1744394815893,0.29844,84056.0,84042.0,0.3608]
[1744394816099,0.1190622,84030.0,84029.0,0.12382343]
[1744394816296,0.1190778,84019.0,84018.0,0.3608]
[1744394816601,0.1190891,84011.0,84010.0,0.095]
[1744394816800,0.4798891,84011.0,84010.0,0.095]
[1744394817003,0.1190891,84011.0,84010.0,0.095]
[1744394817401,0.1190891,84011.0,84010.0,0.2140905]
[1744394817603,0.3608,84027.0,84018.0,0.1190792]
[1744394817907,0.1190851,84014.0,84012.0,0.0595438]
[1744394818095,0.4798849,84015.0,84014.0,0.1786222]
[1744394818294,0.1190849,84015.0,84014.0,0.1961]
[1744394818602,0.0595417,84015.0,84003.0,0.36556171]
[1744394818809,0.479892,84009.0,84005.0,0.0954]
[1744394819005,0.479892,84009.0,84003.0,0.00476171]
[1744394819505,0.3608,84009.0,84008.0,0.46336322]
[1744394819708,0.1786369,84012.0,84011.0,0.1190863]
[1744394820098,0.1786769,84012.0,84011.0,0.1190863]
[1744394820302,4e-05,84012.0,84011.0,0.1190863]
[1744394820608,0.1190905,84010.0,84009.0,0.2514454]
[1744394820993,4e-05,84012.0,84011.0,0.1190891]
[1744394821402,0.1190838,84015.0,84009.0,0.2514454]
[1744394821403,0.1190839,84015.0,84014.0,0.1190849]
[1744394821707,0.09908,84017.0,84016.0,0.119082]
[1744394822204,0.1191206,84017.0,84016.0,0.119082]
[1744394822412,5.401e-05,84027.0,84023.0,0.0595359]
[1744394822611,5.401e-05,84027.0,84026.0,0.1190679]
[1744394822905,0.3608,84037.0,84024.0,0.2557353]
[1744394822906,0.1785992,84030.0,84029.0,0.0595317]
[1744394823407,0.0595331,84028.0,84027.0,0.1190657]
[1744394823607,0.0595338,84027.0,84024.0,0.0943]
[1744394823814,0.1190693,84025.0,84024.0,0.0943]
[1744394824016,0.1190735,84022.0,84021.0,0.00017853]
[1744394824310,0.4798735,84022.0,84021.0,0.00017853]
[1744394824707,0.4798735,84022.0,84007.0,0.0953]
[1744394824708,0.1190934,84008.0,84007.0,0.0953]
[1744394824907,0.119099,84004.0,84000.0,0.1]
[1744394825106,0.119099,84004.0,84000.0,0.2191042]
[1744394825507,0.1191033,84001.0,84000.0,0.1]
[1744394825703,0.1191359,83978.0,83977.0,0.00476318]
[1744394825911,0.1191359,83978.0,83977.0,0.0164051]
[1744394826101,0.4799359,83978.0,83977.0,0.00476318]
[1744394826302,0.4799359,83978.0,83977.0,0.12390048]
[1744394826507,0.4799359,83978.0,83977.0,0.00476318]
[1744394826707,0.5737359,83978.0,83977.0,0.00476318]
[1744394826903,0.6748359,83978.0,83977.0,0.00476318]
[1744394827502,0.4799759,83978.0,83977.0,0.12390048]
[1744394827707,0.4799759,83978.0,83977.0,0.00476318]
[1744394827904,0.4799359,83978.0,83977.0,0.00476318]
[1744394828109,0.4799759,83978.0,83977.0,0.00476318]
[1744394828307,0.1191558,83964.0,83962.0,0.1191583]
[1744394828507,0.1191558,83964.0,83963.0,0.46342702]
[1744394828814,0.2182758,83964.0,83963.0,0.34426982]
[1744394829018,0.10703,83954.0,83951.0,0.00476466]
[1744394829203,0.119183,83948.0,83947.0,0.1191764]
[1744394829405,0.0595912,83946.0,83942.0,0.1006]
[1744394829708,0.119187,83942.0,83916.0,0.0596115]
[1744394829913,0.119187,83942.0,83941.0,0.52122898]
[1744394830216,0.320587,83942.0,83941.0,0.52122898]
[1744394830402,0.20144,83942.0,83941.0,0.52122898]
[1744394830602,4e-05,83942.0,83941.0,0.52122898]
[1744394830807,0.119187,83942.0,83941.0,0.52122898]
[1744394831003,0.119227,83942.0,83941.0,0.1191884]
[1744394831211,0.119227,83942.0,83941.0,0.2197884]
[1744394831510,5.401e-05,83951.0,83941.0,0.4614]
[1744394831713,5.401e-05,83951.0,83950.0,0.1191757]
[1744394831914,0.11933745,83962.0,83961.0,0.11916]
[1744394832111,0.11939146,83962.0,83961.0,0.11916]
[1744394832312,0.11933745,83962.0,83961.0,0.11916]
[1744394832507,0.48017745,83962.0,83961.0,0.11916]
[1744394832714,0.1787654,83953.0,83952.0,0.0595832]
[1744394833012,0.0595863,83953.0,83952.0,0.0595832]
[1744394833215,0.1191757,83950.0,83949.0,0.0595883]
[1744394833715,0.0595887,83949.0,83924.0,0.0596061]
[1744394833918,0.0595887,83949.0,83921.0,0.3608]
[1744394833919,0.1788078,83933.0,83932.0,0.0595986]
[1744394834215,0.3608,83943.0,83942.0,0.119187]
[1744394834420,0.00017865,83951.0,83949.0,0.1191771]
[1744394835219,0.36084,83950.0,83949.0,0.1191771]
[1744394835520,0.36084,83950.0,83949.0,0.3691771]
[1744394835521,4e-05,83950.0,83949.0,0.3691771]
[1744394835905,4e-05,83950.0,83949.0,0.1191771]
[1744394836413,0.00017865,83951.0,83950.0,0.1191757]
[1744394836714,0.00017865,83951.0,83950.0,0.4799757]
[1744394837213,0.00017865,83951.0,83950.0,0.5777757]
[1744394837713,5.401e-05,83965.0,83964.0,0.1191558]
[1744394838013,0.1191944,83965.0,83964.0,0.1191558]
[1744394838213,0.1191944,83965.0,83964.0,0.201]
[1744394838419,0.3183944,83965.0,83964.0,0.201]
[1744394838914,0.3183944,83965.0,83964.0,0.3201558]
[1744394839513,4e-05,83965.0,83964.0,0.3201558]
[1744394839717,4e-05,83965.0,83964.0,0.6809558]
[1744394839922,0.0963,83989.0,83972.0,0.1191444]
[1744394840218,5.401e-05,83975.0,83972.0,0.4799444]
[1744394840420,5.401e-05,83975.0,83972.0,0.6763444]
[1744394840718,7.291e-05,83982.0,83981.0,0.1191317]
[1744394840917,0.0595616,83987.0,83981.0,0.4203655]
[1744394841117,0.1786829,83989.0,83988.0,0.1191203]
[1744394841418,0.2382449,83989.0,83988.0,0.1967]
[1744394841615,0.1787207,83973.0,83972.0,0.1191432]
[1744394841816,0.1191458,83971.0,83970.0,0.0997]
[1744394842009,0.1012,83988.0,83970.0,0.0997]
[1744394842010,0.1946,83972.0,83971.0,0.1191458]
[1744394842205,0.1191424,83974.0,83973.0,0.119143]
[1744394842409,0.1191384,83977.0,83974.0,0.0595705]
[1744394842621,0.1787077,83977.0,83976.0,0.1191373]
[1744394842820,0.00017865,83979.0,83978.0,0.1191359]
[1744394843117,0.11931315,83979.0,83978.0,0.1191359]
[1744394843422,0.00017865,83979.0,83978.0,0.2120359]
[1744394843712,0.00021865,83979.0,83978.0,0.2120359]
[1744394843917,0.00017865,83979.0,83978.0,0.2120359]
[1744394844120,0.00021865,83979.0,83978.0,0.2120359]
[1744394844420,0.005,83992.0,83991.0,0.1191175]
[1744394844617,0.1786797,83991.0,83990.0,0.1191177]
[1744394844817,0.005,83992.0,83991.0,0.1191175]
[1744394845519,0.005,83992.0,83991.0,0.3157175]
[1744394845712,0.005,83992.0,83991.0,0.6765175]
[1744394846113,0.00504,83992.0,83991.0,0.6765175]
[1744394846310,0.00017865,84000.0,83999.0,0.1191061]
[1744394846514,0.10552349,84005.0,84004.0,0.119099]
[1744394846912,0.005,84018.0,84009.0,0.119092]
[1744394847218,0.10599993,84015.0,84014.0,0.1190849]
[1744394847410,0.22508333,84015.0,84014.0,0.1190849]
[1744394847610,0.1190849,84014.0,84013.0,0.2051]
[1744394847816,0.3097849,84014.0,84013.0,0.2051]
[1744394848014,0.3097849,84014.0,84011.0,0.0595443]
[1744394848223,0.3097849,84014.0,84008.0,0.0595466]
[1744394848224,0.1190948,84007.0,84006.0,0.00017854]
[1744394848417,0.1190929,84009.0,84008.0,0.119092]
[1744394849020,0.2141329,84009.0,84008.0,0.119092]
[1744394849622,4e-05,84009.0,84008.0,0.119092]
[1744394850219,0.0595432,84013.0,84012.0,0.0595432]
[1744394850720,0.1190948,84007.0,84006.0,0.17881934]
[1744394851222,0.0945,84012.0,84009.0,0.0595453]
[1744394851426,0.1190913,84010.0,84009.0,0.1786344]
[1744394851722,0.1190913,84010.0,84009.0,0.0595453]
[1744394851918,0.0595466,84009.0,84006.0,0.00017854]
[1744394852113,0.1190948,84007.0,84006.0,0.11927244]
[1744394853724,0.2538466,84009.0,84008.0,0.1190934]
[1744394854025,0.1943,84009.0,84008.0,0.1190934]
[1744394854526,0.313392,84009.0,84008.0,0.1190934]
[1744394854927,0.1190948,84007.0,84006.0,0.00017854]
[1744394855117,0.1190948,84007.0,84006.0,0.11927474]
[1744394856027,0.0595563,83996.0,83995.0,0.1786591]
[1744394856329,0.1015,84006.0,84005.0,0.1190976]
[1744394856525,0.36093287,84020.0,83996.0,0.0595551]
[1744394856526,0.2214894,84012.0,84011.0,0.1190891]
[1744394856724,0.3229894,84012.0,84011.0,0.1190891]
[1744394856924,0.3229877,84012.0,84011.0,0.1190891]
[1744394857227,0.3230277,84012.0,84011.0,0.1190891]
[1744394857425,0.20394,84012.0,84011.0,0.1190891]
[1744394857624,0.3230277,84012.0,84011.0,0.1190891]
[1744394858828,0.3229877,84012.0,84011.0,0.1190891]
[1744394859032,0.20394,84012.0,84011.0,0.1190891]
[1744394859222,0.3230277,84012.0,84011.0,0.1190891]
[1744394860232,4e-05,84012.0,84011.0,0.1190891]
[1744394860434,0.005,84018.0,84017.0,0.1190806]
[1744394860733,0.005,84018.0,84017.0,0.4798806]
[1744394861124,0.00504,84018.0,84017.0,0.4798806]
[1744394861432,0.1241192,84018.0,84017.0,0.4798806]
[1744394861727,0.00504,84018.0,84017.0,0.4798806]
[1744394861933,0.005,84018.0,84017.0,0.4798806]
[1744394862128,0.00504,84018.0,84017.0,0.4798806]
[1744394862328,0.005,84018.0,84017.0,0.4798806]
[1744394862531,0.00504,84018.0,84017.0,0.8951806]
[1744394862732,0.00017854,84020.0,84019.0,0.1190778]
[1744394863029,0.00021854,84020.0,84019.0,0.5343778]
[1744394863429,0.14069798,84028.0,84027.0,0.1190664]
[1744394863737,0.1190629,84030.0,84029.0,0.178594]
[1744394864035,0.1190679,84026.0,84025.0,0.059534]
[1744394864231,0.0595364,84023.0,84019.0,0.5343769]
[1744394864426,0.1190764,84020.0,84019.0,0.5343769]
[1744394864826,0.1927,84022.0,84020.0,0.0595381]
[1744394865133,0.311774,84022.0,84021.0,0.1190749]
[1744394865433,0.19274,84022.0,84019.0,0.4153]
[1744394865631,0.1190764,84020.0,84019.0,0.4153]
[1744394866037,0.3126764,84020.0,84019.0,0.4153]
[1744394866532,0.5031386,84020.0,84013.0,0.00017854]
[1744394866733,0.5031386,84020.0,83995.0,0.00896763]
[1744394866734,0.119099,84004.0,83995.0,0.0595557]
[1744394867039,0.218059,84004.0,83995.0,0.1191107]
[1744394867238,0.218059,84004.0,84003.0,0.12386221]
[1744394867842,0.420159,84004.0,84003.0,0.12386221]
[1744394868737,0.420199,84004.0,84003.0,0.00476171]
[1744394868929,0.420199,84004.0,84003.0,0.12386221]
[1744394869130,0.1996,84004.0,84003.0,0.12386221]
[1744394869433,0.19956,84004.0,84003.0,0.12386221]
[1744394869637,0.10064,84004.0,84003.0,0.22696221]
[1744394869941,4e-05,84004.0,84003.0,0.22696221]
[1744394870138,4e-05,84004.0,84003.0,0.32736221]
[1744394870340,0.0979,84011.0,84009.0,0.1190905]
[1744394870529,0.0595453,84010.0,84009.0,0.1190905]
[1744394870940,0.2552453,84010.0,84009.0,0.2150905]
[1744394871535,0.11926654,84012.0,84011.0,0.1190891]
[1744394871930,0.00017854,84012.0,84011.0,0.4798891]
[1744394872233,0.00017854,84012.0,84011.0,0.5758891]
[1744394872633,0.00021854,84012.0,84011.0,0.5758891]
[1744394873337,0.00021854,84012.0,84011.0,0.6710891]
[1744394873837,0.00021854,84012.0,84011.0,0.3102891]
[1744394874929,0.00021854,84012.0,84011.0,0.2150891]
[1744394875134,4e-08,84012.0,84011.0,0.6303891]
[1744394875332,0.21104698,84030.0,84029.0,0.1190636]
[1744394875931,0.21104698,84030.0,84029.0,0.2127636]
[1744394876630,0.0998,84036.0,84030.0,0.1190622]
[1744394876631,0.21104698,84031.0,84030.0,0.1190622]
[1744394876835,0.21104698,84031.0,84030.0,0.2127622]
[1744394877030,0.21108698,84031.0,84030.0,0.2127622]
[1744394877730,0.21104698,84031.0,84030.0,0.2127622]
[1744394878129,0.21108698,84031.0,84030.0,0.2127622]
[1744394878642,0.21108698,84031.0,84030.0,0.3076622]
[1744394880944,0.21104698,84031.0,84030.0,0.3076622]
[1744394881142,4e-05,84031.0,84030.0,0.3076622]
[1744394881739,0.1190735,84024.0,84023.0,0.1786049]
[1744394881934,4e-05,84031.0,84030.0,0.1190622]
[1744394882438,0.005,84044.0,84037.0,0.1190523]
[1744394882838,0.2053,84043.0,84037.0,0.2150523]
[1744394883044,0.00021854,84038.0,84037.0,0.2150523]
[1744394883449,0.00017854,84038.0,84037.0,0.3130523]
[1744394883643,0.00021854,84038.0,84037.0,0.3130523]
[1744394883851,0.005,84044.0,84037.0,0.3130523]
[1744394883852,0.005,84044.0,84043.0,0.1190438]
[1744394884344,0.0942,84060.0,84041.0,0.0595226]
[1744394884345,0.1027,84051.0,84041.0,0.0595226]
[1744394884549,0.21110099,84064.0,84045.0,0.3608]
[1744394884751,0.21110099,84064.0,84063.0,0.1190155]
[1744394885542,0.21108698,84064.0,84063.0,0.1190155]
[1744394885743,0.21104698,84064.0,84063.0,0.1190155]
[1744394885940,0.21108698,84064.0,84063.0,0.1190155]
[1744394886336,0.21104698,84064.0,84063.0,0.6823155]
[1744394886537,0.21108698,84064.0,84063.0,0.6823155]
[1744394887937,0.21108698,84064.0,84063.0,0.3215155]
[1744394888143,0.33010098,84064.0,84063.0,0.1190155]
[1744394888341,0.119054,84064.0,84063.0,0.1190155]
[1744394888843,0.119054,84064.0,84063.0,0.2188155]
[1744394889938,4e-05,84064.0,84063.0,0.2188155]
[1744394890341,0.005,84070.0,84069.0,0.119007]
[1744394890547,0.005,84070.0,84069.0,0.479807]
[1744394890944,0.00504,84070.0,84069.0,0.895107]
[1744394891250,0.00504,84070.0,84069.0,0.994007]
[1744394892246,0.00504,84070.0,84069.0,0.895107]
[1744394892446,0.00504,84070.0,84069.0,0.995607]
[1744394893361,0.005,84070.0,84069.0,0.995607]
[1744394893552,0.00504,84070.0,84069.0,0.995607]
[1744394894447,0.00504,84070.0,84069.0,0.634807]
[1744394894752,0.00504,84070.0,84069.0,0.995607]
[1744394896243,0.005,84070.0,84069.0,0.995607]
[1744394896458,0.00504,84070.0,84069.0,0.995607]
[1744394896948,0.0953,84088.0,84074.0,0.0594996]
[1744394897144,0.0953,84088.0,84087.0,0.1189815]
[1744394897345,0.0953,84088.0,84084.0,0.0594925]
[1744394897746,4e-05,84088.0,84087.0,0.1189815]
[1744394898050,5.401e-05,84098.0,84097.0,0.1784503]
[1744394898238,0.1,84100.0,84099.0,0.1189645]
[1744394898442,0.0953,84114.0,84099.0,0.1189645]
[1744394898443,0.21104698,84114.0,84099.0,0.4153]
[1744394898639,0.21104698,84114.0,84113.0,0.1189447]
[1744394898852,0.31254698,84114.0,84113.0,0.1189447]
[1744394899050,0.41018698,84114.0,84113.0,0.1189447]
[1744394900051,0.21108698,84114.0,84113.0,0.1189447]
[1744394900260,0.21104698,84114.0,84113.0,0.1189447]
[1744394900447,0.21104698,84114.0,84113.0,0.2158447]
[1744394900755,0.21108698,84114.0,84113.0,0.2158447]
[1744394902754,0.21108698,84114.0,84113.0,0.6311447]
[1744394902948,0.005,84122.0,84121.0,0.1189334]
[1744394903146,1e-07,84122.0,84121.0,0.8950334]
[1744394903348,1e-07,84122.0,84121.0,1.1450334]
[1744394903748,7.291e-05,84149.0,84121.0,1.30135781]
[1744394904056,0.0964,84157.0,84121.0,1.30135781]
[1744394904057,0.0941,84144.0,84143.0,0.1189023]
[1744394905356,0.0941,84144.0,84143.0,0.12781351]
[1744394905556,0.09414,84144.0,84143.0,0.12781351]
[1744394906453,0.2130409,84144.0,84143.0,0.12781351]
[1744394906651,0.2130409,84144.0,84143.0,0.00891121]
[1744394906852,0.2130409,84144.0,84143.0,0.1189023]
[1744394907162,0.09414,84144.0,84143.0,0.1189023]
[1744394907361,0.2130409,84144.0,84143.0,0.1189023]
[1744394909962,0.2130409,84144.0,84143.0,0.12777203]
[1744394910756,0.118912,84137.0,84134.0,0.5391697]
[1744394910958,0.1189136,84135.0,84134.0,0.1783697]
[1744394911455,0.3160136,84135.0,84134.0,0.1783697]
[1744394911653,0.1971,84135.0,84127.0,0.059462]
[1744394911859,0.1189249,84131.0,84130.0,0.0594595]
[1744394912152,0.1783862,84131.0,84130.0,0.0594595]
[1744394912354,0.2565613,84131.0,84130.0,0.0594595]
[1744394912761,0.1971,84131.0,84118.0,0.0594684]
[1744394912954,0.4186,84173.0,84141.0,0.0594518]
[1744394913153,0.0998,84153.0,84147.0,0.1188966]
[1744394913357,0.0998,84153.0,84152.0,0.1188896]
[1744394913655,0.1006,84164.0,84163.0,0.118874]
[1744394913656,0.10083129,84164.0,84163.0,0.118874]
[1744394913864,0.10083129,84164.0,84163.0,0.12793903]
[1744394914050,0.2194726,84164.0,84163.0,0.12793903]
[1744394914250,0.2195126,84164.0,84163.0,0.12793903]
[1744394915154,0.1783293,84158.0,84157.0,0.1188772]
[1744394915349,0.1188852,84158.0,84157.0,0.1188772]
[1744394915650,0.1188852,84158.0,84157.0,0.12787328]
[1744394916752,0.4796852,84158.0,84157.0,0.12787328]
[1744394917351,0.1783443,84149.0,84148.0,0.0594461]
[1744394917552,0.1783443,84149.0,84144.0,0.00017832]
[1744394917553,0.1188995,84145.0,84144.0,0.00017832]
[1744394917760,0.1188995,84145.0,84144.0,0.12784344]
[1744394918456,0.2182995,84145.0,84144.0,0.12784344]
[1744394918658,0.3239995,84145.0,84144.0,0.12784344]
[1744394920656,0.2051,84145.0,84144.0,0.12784344]
[1744394920962,0.09944,84145.0,84144.0,0.48864344]
[1744394921260,0.0994,84145.0,84144.0,0.68474344]
[1744394921458,0.09944,84145.0,84144.0,0.48864344]
[1744394921864,0.09944,84145.0,84144.0,0.68714344]
[1744394922060,0.2183395,84145.0,84144.0,0.68714344]
[1744394922267,0.2183395,84145.0,84144.0,0.12784344]
[1744394922464,0.2183395,84145.0,84144.0,0.00017832]
[1744394922671,0.3148395,84145.0,84144.0,0.00017832]
[1744394923375,0.118915,84134.0,84129.0,0.00889241]
[1744394923559,0.479715,84134.0,84131.0,0.1189185]
[1744394923760,0.479715,84134.0,84129.0,0.00889241]
[1744394923761,0.840515,84134.0,84129.0,0.12781311]
[1744394923964,0.675115,84134.0,84129.0,0.00889241]
[1744394924268,0.17841,84118.0,84117.0,0.059468]
[1744394924564,0.17841,84118.0,84117.0,0.06829531]
[1744394925155,0.2039,84120.0,84119.0,0.1189362]
[1744394925368,0.3228348,84120.0,84119.0,0.1189362]
[1744394926456,0.2039,84120.0,84109.0,0.00017832]
[1744394926657,0.1189489,84110.0,84109.0,0.11912872]
[1744394926971,0.1189489,84110.0,84109.0,0.00017832]
[1744394927361,0.1189659,84099.0,84098.0,0.118963]
[1744394927563,0.1784488,84099.0,84098.0,0.118963]
[1744394927762,0.1189744,84092.0,84091.0,0.0594874]
[1744394928263,0.2077,84094.0,84093.0,0.118973]
[1744394928464,0.2231716,84094.0,84093.0,0.118973]
[1744394928865,0.10424,84094.0,84093.0,0.118973]
[1744394929061,0.2232116,84094.0,84093.0,0.225273]
[1744394929262,0.10424,84094.0,84093.0,0.225273]
[1744394929570,4e-05,84094.0,84093.0,0.225273]
[1744394929876,0.00017832,84100.0,84099.0,0.1189645]
[1744394930058,0.00017832,84100.0,84099.0,0.4797645]
[1744394930261,0.1042,84110.0,84109.0,0.1189504]
[1744394930468,0.1042,84110.0,84109.0,0.4797504]
[1744394930958,0.10424,84110.0,84109.0,0.4797504]
[1744394931363,0.2231889,84110.0,84109.0,0.4797504]
[1744394931573,0.1189889,84110.0,84109.0,0.4797504]
[1744394932266,0.1189889,84110.0,84109.0,0.1189504]
[1744394932569,0.1784332,84107.0,84106.0,0.118954]
[1744394932866,0.1784332,84107.0,84104.0,0.2106]
[1744394932867,0.118956,84105.0,84104.0,0.2106]
[1744394933066,0.118956,84105.0,84104.0,0.2232574]
[1744394933463,0.216956,84105.0,84104.0,0.2232574]
[1744394933663,0.098,84105.0,84104.0,0.2232574]
[1744394934058,0.216956,84105.0,84104.0,0.1043]
[1744394934268,0.315356,84105.0,84104.0,0.1043]
[1744394934476,0.1189744,84092.0,84081.0,0.00475729]
[1744394934765,0.1189886,84082.0,84081.0,0.00475729]
[1744394934967,0.1189886,84082.0,84081.0,0.12374729]
[1744394935166,0.1944,84091.0,84089.0,0.1189774]
[1744394935467,0.31342981,84091.0,84090.0,0.0988]
[1744394935668,5.401e-05,84091.0,84090.0,0.4797772]
[1744394935872,0.00017832,84098.0,84097.0,0.1189673]
[1744394936076,0.00017832,84098.0,84097.0,0.4797673]
[1744394936575,0.00021832,84098.0,84097.0,0.4797673]
[1744394936774,0.00017832,84098.0,84097.0,0.4797673]
[1744394936968,0.00021832,84098.0,84097.0,0.6796673]
[1744394937375,5.401e-05,84110.0,84109.0,0.1189504]
[1744394937965,0.11900291,84110.0,84109.0,0.3188504]
[1744394938170,5.401e-05,84110.0,84109.0,0.3188504]
[1744394938678,0.17604272,84115.0,84114.0,0.1189433]
[1744394938871,0.17596981,84115.0,84114.0,0.1189433]
[1744394939075,0.17600981,84115.0,84114.0,0.1189433]
[1744394939773,0.17596981,84115.0,84114.0,0.1189433]
[1744394940072,0.29495171,84115.0,84114.0,0.3202433]
[1744394940273,0.17600981,84115.0,84114.0,0.3202433]
[1744394940970,0.17600981,84115.0,84114.0,0.6810433]
[1744394941372,0.17596981,84115.0,84114.0,0.6810433]
[1744394941675,0.17600981,84115.0,84114.0,0.6810433]
[1744394942467,4e-05,84115.0,84114.0,0.6810433]
[1744394942669,4e-05,84115.0,84114.0,1.0418433]
[1744394942874,0.00017796,84118.0,84114.0,1.0418433]
[1744394942875,0.00017796,84118.0,84117.0,0.118939]
[1744394944071,0.09657796,84118.0,84117.0,0.118939]
[1744394944272,0.21551556,84118.0,84117.0,0.118939]
[1744394944979,0.09657796,84118.0,84117.0,0.118939]
[1744394946280,0.21551556,84118.0,84117.0,0.118939]
[1744394946870,0.0594725,84113.0,84104.0,0.0594784]
[1744394947076,0.1189528,84109.0,84108.0,0.1189504]
[1744394947578,0.1189546,84106.0,84105.0,0.1033]
[1744394947780,0.1189603,84102.0,84101.0,0.11914002]
[1744394948280,5.401e-05,84112.0,84110.0,0.0594741]
[1744394948482,5.401e-05,84112.0,84111.0,0.2222474]
[1744394948682,0.11900011,84112.0,84111.0,0.2659737]
[1744394948985,0.0594744,84111.0,84110.0,0.1189489]
[1744394949283,0.1189861,84112.0,84111.0,0.2222475]
[1744394949473,4e-05,84112.0,84111.0,0.2222475]
[1744394949784,0.1189461,84112.0,84111.0,0.1033]
[1744394949988,0.1189574,84105.0,84104.0,0.1189558]
[1744394950187,0.1189574,84105.0,84104.0,0.0994]
[1744394950378,0.1189603,84102.0,84094.0,0.2603856]
[1744394950573,0.1189603,84102.0,84094.0,0.2009]
[1744394950778,0.2180603,84102.0,84094.0,0.2009]
[1744394951082,0.2180603,84102.0,84099.0,0.1189636]
[1744394951279,0.2180603,84102.0,84100.0,0.118963]
[1744394951679,0.2180603,84102.0,84101.0,0.11914002]
[1744394952084,0.2180603,84102.0,84080.0,0.3608]
[1744394952085,0.1189886,84082.0,84080.0,0.3608]
[1744394952274,0.1189886,84082.0,84081.0,0.00475729]
[1744394952583,0.4797886,84082.0,84081.0,0.00475729]